Cogmind - Beta 11 @@@ ROGUE MODE // 2022.04.15 @ 04:50:37 Player: CrashCricket Result: Destroyed by G-34 Mercenary with Small Laser Performance ------------- Evolutions (0) 0 Regions Visited (1) 200 Robots Destroyed (13) 65 Value Destroyed (271) 271 Prototype IDs (2) 40 Alien Tech Used (0) 0 Bonus (0) 0 TOTAL SCORE: 576 Bonus ------- None Cogmind --------- Core Integrity 0/250 Matter 160/300 Energy 100/100 System Corruption 0% Temperature Cool (6) Movement Rolling (95) Ox1 Location -10/Materials Parts ------- > --- POWER (1) -------- (None) > --- PROPULSION (2) --- Wheel Wheel > --- UTILITY (2) ------ Cooling System Large Storage Unit > --- WEAPON (2) ------- Improved Light Cannon Improved Light Cannon > --- INVENTORY (15) --- Ion Engine Cooling System Large Storage Unit Improved Terrain Scanner Medium Armor Plating Medium Armor Plating Improved Light Cannon Improved Light Cannon Peak State ------------ > --- POWER ------------ Ion Engine > --- PROPULSION ------- Wheel Compact Wheel > --- UTILITY ---------- Small Storage Unit Improved Terrain Scanner > --- WEAPON ----------- Particle Gun Particle Gun > --- INVENTORY -------- Ion Engine Wheel Wheel Wheel Wheel Wheel Particle Gun Particle Gun [Rating: 12] Favorites ----------- Power Ion Engine Engine Ion Engine Propulsion Wheel Wheel Wheel Utility Small Storage Unit Device Cooling System Storage Small Storage Unit Weapon Particle Gun Energy Gun Particle Gun Ballistic Gun Light Assault Rifle Ballistic Cannon Improved Light Cannon Build | -11 -10 ------- Run | Scr Mat Slots Evolved . | . . Power . | . . Propulsion . | . . Utility . | . . Weapon . | . . Parts Attached 20 | 8 12 Power 1 | 1 . Engine 1 | 1 . Core . | . . Reactor . | . . Propulsion 5 | 3 2 Treads . | . . Leg . | . . Wheel 5 | 3 2 Hover . | . . Flight . | . . Utility 6 | 2 4 Device 4 | 1 3 Storage 2 | 1 1 Processor . | . . Hackware . | . . Protection . | . . Artifact . | . . Weapon 8 | 2 6 Energy Gun 5 | 1 4 Energy Cannon . | . . Ballistic Gun 1 | 1 . Ballistic Cannon 2 | . 2 Launcher . | . . Special Weapon . | . . Impact Weapon . | . . Slashing Weapon . | . . Piercing Weapon . | . . Special Melee Weapon . | . . Unidentified Prototypes . | . . Parts Lost 4 | . 4 Power 1 | . 1 Propulsion 2 | . 2 Utility 1 | . 1 Weapon . | . . Highest Loss Streak 3 | . 3 To Critical Strikes . | . . Average Slot Usage (%) 92 | . 92 Engine 12 | . 12 Wheel 24 | . 24 Device 12 | . 12 Storage 14 | . 14 Energy Gun 15 | . 15 Ballistic Cannon 11 | . 11 Naked Turns . | . . Heaviest Build 35 | 14 35 Greatest Support 26 | 26 26 Greatest Overweight (x) 4 | . 4 Average Overweight (x) . | . . Largest Inventory Capacity 15 | 8 15 Average Capacity 9 | 6 10 Most Carried 8 | 8 8 Average Carried 6 | 3 7 Final Capacity 15 | 8 15 Final Carried 8 | 7 8 Class Distribution -------------------- 100% | Mutant Dominant Class ---------------- Mutant | -10/Materials Resources | -11 -10 ----------- Run | Scr Mat Matter Collected 436 | 208 228 Remotely . | . . Salvage Created 301 | 109 192 Parts 30 | 12 18 Haulers Intercepted . | . . Recyclers Shooed . | . . Parts Field Recycled . | . . Retrieved Matter . | . . Parts Self-Destructed . | . . Prevented . | . . Kills | -11 -10 ------- Run | Scr Mat Combat Hostiles Destroyed 7 | . 7 Guns 5 | . 5 Cannons 2 | . 2 Classes Destroyed 5 | 2 3 Tunneler 3 | 3 . Recycler 1 | 1 . Watcher 2 | . 2 Swarmer 3 | . 3 Grunt 4 | . 4 Best Kill Streak 5 | 4 5 Combat Bots Only 5 | . 5 Max Kills in Single Turn 2 | 1 2 Gunslinging . | . . Exploded . | . . Melee . | . . Uniques/NPCs Destroyed . | . . Combat | -11 -10 -------- Run | Scr Mat Damage Taken 550 | . 550 Core 256 | . 256 Absorbed by Shields . | . . Core Remaining (%) 100 | 100 . Volleys Fired 37 | 5 32 Largest 2 | 2 2 Hottest 130 | 70 130 Shots Fired 67 | 10 57 Gun 35 | 10 25 Cannon 32 | . 32 Launcher . | . . Special . | . . Kinetic 37 | 5 32 Thermal 30 | 5 25 Explosive . | . . Electromagnetic . | . . Robot Hit Streak 8 | 8 8 Robot Miss Streak 5 | . 5 Penetration Max . | . . Secondary Targets . | . . Shots Hit Robots 39 | 8 31 Core Hits 16 | 5 11 Critical Kills . | . . Critical Parts Destroyed . | . . Critical Strikes 3 | 1 2 Burn 1 | 1 . Blast 2 | . 2 Melee Attacks . | . . Impact . | . . Slashing . | . . Piercing . | . . Sneak Attacks . | . . Combat Hostiles . | . . Follow-up Attacks . | . . Damage Inflicted 698 | 90 608 Guns 364 | 90 274 Cannons 334 | . 334 Explosions . | . . Melee . | . . Ramming . | . . Kinetic 362 | 28 334 Thermal 336 | 62 274 Explosive . | . . Electromagnetic . | . . Impact . | . . Slashing . | . . Piercing . | . . Highest Corruption . | . . Average Corruption . | . . Corruption Purged . | . . Corruption Blocked . | . . Overload Shots . | . . Overflow Damage . | . . Projectiles . | . . Explosions . | . . Melee . | . . Knockbacks 1 | . 1 Impact . | . . Kinetic 1 | . 1 Secondary . | . . Self-Inflicted Damage . | . . Shots . | . . Rammed . | . . Targets Rammed . | . . Kicked . | . . Crushed . | . . Highest Temperature 650 | 70 650 Average Temperature 240 | 36 286 Received Heat Transfer 192 | . 192 Effects 19 | . 19 Shutdowns 3 | . 3 Energy Bleed 2 | . 2 Interference 1 | . 1 Matter Decay 2 | . 2 Short Circuit 2 | . 2 Damage (minor) 1 | . 1 Damage (major) 5 | . 5 Damage (core) 3 | . 3 Siege Activations . | . . Robots Corrupted . | . . Combat Hostiles . | . . Parts Fried . | . . Impact Corruptions . | . . Robots Melted . | . . Combat Hostiles . | . . Parts Melted 1 | 1 . Heat Transferred 925 | 259 666 Parts Sabotaged . | . . Parts Stolen . | . . Parts Stripped . | . . Power Chain Reactions . | . . Missiles Intercepted . | . . Alert | -11 -10 ------- Run | Scr Mat Peak Influence 207 | 20 207 Initial 13 | . 13 Average 85 | 7 103 Maximum Alert Level 1 | . 1 Low Security (%) 96 | 100 95 Level 1 3 | . 4 Level 2 . | . . Level 3 . | . . Level 4 . | . . Level 5 . | . . High Security . | . . Max Security . | . . Squads Dispatched 2 | . 2 Investigation . | . . Extermination . | . . Reinforcement 2 | . 2 Assault . | . . Garrison . | . . Intercept . | . . Searches Triggered . | . . Construction Impeded . | . . Haulers Reinforced . | . . Active Scanning Responses . | . . Cargo Convoy Interrupts . | . . Stealth | -11 -10 --------- Run | Scr Mat Distress Signals 1 | . 1 Communications Jammed . | . . Distress Signals . | . . Times Spotted 13 | . 13 Peak Tracking Total 5 | . 5 Tactical Retreats . | . . Traps | -11 -10 ------- Run | Scr Mat Traps Triggered 1 | . 1 Indirectly . | . . Trap Hack Attempts . | . . Triggered . | . . Disarmed . | . . Reprogrammed . | . . Reused . | . . Traps Extracted . | . . Installed . | . . Triggered . | . . Machines | -11 -10 ---------- Run | Scr Mat Machines Disabled 3 | . 3 Max in Single Turn 1 | . 1 Machines Sabotaged . | . . Garrisons Compromised . | . . Overloaded Fab Kills . | . . Hacking | -11 -10 --------- Run | Scr Mat Machines Accessed 2 | . 2 Terminals 1 | . 1 Fabricators . | . . Repair Stations . | . . Recycling Units 1 | . 1 Scanalyzers . | . . Garrison Access . | . . Total Hacks 6 | . 6 Successful 4 | . 4 Failed 2 | . 2 Catastrophic . | . . Database Lockouts . | . . Manual . | . . Terminals 3 | . 3 Fabricators . | . . Repair Stations . | . . Recycling Units 3 | . 3 Scanalyzers . | . . Garrison Access . | . . Terminal Hacks 3 | . 3 Prototype ID Bank 1 | . 1 Transport Status 1 | . 1 Zone Layout 1 | . 1 Fabricator Hacks . | . . Repair Station Hacks . | . . Recycling Unit Hacks 1 | . 1 Retrieve Components 1 | . 1 Scanalyzer . | . . Garrison Access Hacks . | . . Unauthorized Hacks . | . . Terminals . | . . Fabricators . | . . Repair Stations . | . . Recycling Units . | . . Scanalyzers . | . . Garrison Access . | . . Data Cores Recovered . | . . Used . | . . Hacking Detections 1 | . 1 Full Trace Events . | . . Feedback Events . | . . Feedback Blocked . | . . Robot Schematics Acquired . | . . Robots Built . | . . Authchips . | . . Time . | . . Total Robot Build Rating . | . . Part Schematics Acquired . | . . Parts Built . | . . Authchips . | . . Time . | . . Total Part Build Rating . | . . Parts Repaired . | . . Time . | . . Parts Recycled . | . . Recycled Matter . | . . Retrieved Matter . | . . Retrieved Components 3 | . 3 Parts Scanalyzed . | . . Part Schematics Acquired . | . . Parts Damaged . | . . Bothacking | -11 -10 ------------ Run | Scr Mat Used RIF Installer . | . . Robots Hacked . | . . Non-combat . | . . Combat . | . . Robot Hacks Applied . | . . Relay Couplers Released . | . . Fabnet Peak Effective % . | . . Robots Rewired . | . . Allies Hacked . | . . Hacks Repelled . | . . Allies | -11 -10 -------- Run | Scr Mat Total Allies . | . . Largest Group . | . . Highest-Rated Group . | . . Highest-Rated Ally . | . . Total Orders . | . . Ally Attacks . | . . Total Damage . | . . Kills . | . . Allies Corrupted . | . . Allies Melted . | . . Intel | -11 -10 ------- Run | Scr Mat Robot Analysis Total . | . . Derelict Logs Recovered . | . . Drone Launches . | . . Drone Recoveries . | . . Exploration | -11 -10 ------------- Run | Scr Mat Turns Passed 510 | 95 415 Spaces Moved 372 | 75 297 Core 19 | 7 12 Treads . | . . Legs . | . . Wheels 353 | 68 285 Hover . | . . Flight . | . . Fastest Speed 50 | 50 80 Average Speed 92 | 78 96 Slowest Speed 250 | 90 250 Overloaded Moves . | . . Propulsion Burnouts . | . . Robots Hopped . | . . Cave-ins Triggered . | . . Exploration Rate (%) 30 | 4 57 Regions Visited 1 Branch Regions . Pre-discovered Areas . | . . Known Exits Taken . | . . Unknown Exits Taken 1 | 1 . Scrap Searched . | . . Spaces Dug . | . . Terrain Destroyed . | . . Melee . | . . Projectile . | . . AOE . | . . Terrain Rammed . | . . Walls Destroyed . | . . Machines Disabled . | . . Actions | -11 -10 --------- Run | Scr Mat Total 474 | 101 373 Wait . | . . Move 371 | 74 297 Hop . | . . Pick Up 31 | 14 17 Fast Attach 2 | . 2 Attach 11 | 7 4 Detach . | . . Swap 7 | 1 6 Drop 15 | . 15 Fire 37 | 5 32 Melee . | . . Ram . | . . Kick . | . . Crush . | . . Escape Stasis . | . . Rewire . | . . Trap . | . . Miscellaneous . | . . Route ------- -11/Scrapyard -10/Materials (discovered 2 exits: [*Mat] / [*Min]) History --------- Turn | Location | Event 5 | -11/Scrapyard | Discovered new exit (range 16) 96 | -11/Scrapyard | Entered Materials 276 | -10/Materials | Core integrity fell below 50% 281 | -10/Materials | Core integrity fell below 20% 297 | -10/Materials | Lost 3 parts (2n1u) 369 | -10/Materials | Build established: Mutant 429 | -10/Materials | Discovered new exit (range 9) 484 | -10/Materials | Discovered new exit (range 7) 511 | -10/Materials | Destroyed by G-34 Mercenary with Small Laser Last Messages --------------- K-01 Serf collects debris. U-05 Engineer builds a Wall. O-16 Technician sends out distress signal. O-16 Technician: "IFF HANDSHAKE FAILED. SECURING TERMINAL." Electrolysis Chamber disabled. ALERT: Hostiles spotted, dispatching reinforcements to Terminal M004. Ion Engine destroyed. G-47 Trooper Particle Gun blasted off. G-34 Mercenary destroyed. K-01 Serf collects debris. M-13 Machinist fits Backup Laser I on G-47 Trooper. EXIT=FOUND K-01 Serf collects debris. Machine disabled. K-01 Serf collects debris. A-02 Transporter Lgt. Treads blasted off. K-01 Serf collects debris. G-47 Trooper knocked back. G-47 Trooper destroyed. K-01 Serf collects debris. Map ----- +----------------------------------------------------+ | | | | | | | | | | | | | ?????????????????????????????????????? | | ??########???????????????????????????? | | ??# #???????????????????????????? | | ??# #####???????????????????????? | | ??# + ##########??????????????? | | ??# ### # #??????????????? | | ### #?# # [ #??????????????? | | # #?# # #??????????????? | | < # #?# # #??????????????? | | ### # #??####????????? | | # # ###" "##???????? | | !% # + ##"|||"##??????? | | # # # #"" %""#??????? | | ## #### # # #??????? | | ####### ###+###### <% #??????? | | #???# #??????? | | T #???# % #??????? | | #????# = #???????? | | ########+### #?????# #????????? | | ##??????????# #######@ #????????? | | #???????????# % +????????? | | #???????????+ #????????? | | #???????????# " #????????? | | #???????????# """ #????????? | | ???????????# """%g #????????? | | ##??????????# !!! #????????? | | ####??????????# !!! %#????????? | | #??????????# !!%!%#????????? | | "" #?????????? k % #????????? | | "" #????????? [ #????????? | | "" #????????? !!/ [=%m#????????? | | # !/ %%! +????????? | | #### ##### !/ %% # ???????? | | //####+#####?###+########## #????????? | | //# #?# ??????? #????????? | | / # #?# ??????? ?????????? | | # #?# ?????????????????? | | # #?# ?????????????????? | | # #?# ?????????????????? | | # #?# ?????????????????? | | # ### ?????????????????? | | # ? ? ?????????????????? | | ### ### ?????????????????? | | ############?#######?????????????????? | +----------------------------------------------------+ Best States ------------- Heat Dissipation 47 Energy Generation 10 Energy Capacity 250 Matter Stores 260 Matter Capacity 300 Sight Range 16 Terrain Scan Range 16 Terrain Scan Density 10 Evasion (%) 44 Item Schematics ----------------- None Robot Schematics ------------------ None Fabricated ------------ Nothing Alien Tech Used ----------------- None Achievements -------------- None Challenges ------------ None Game ------ Seed PowerBombMallet Manual? 0 Play Time 00:12:58 Cumulative 14.8 hours Start 2022.04.15 @ 04:25:58 End 2022.04.15 @ 04:50:37 Sessions 1 Manual Loads 0 Difficulty Rogue Special Mode None Game No. 18 Rogue 9 Adventurer 2 Explorer 7 Win Type - Total 0 Types 0/0/0/0/0/0/0/0/0 Lore% 6 Gallery% 20 Achievement% 18 Wizard Run 0 Options --------- ASCII 0 Keyboard 0 Movement Mouse Keybinds 0 Fullscreen 1 Font 16/SmallcapsGlow Map View 76x50 Tactical HUD 0 Map Filters NONE Filters NONE Steam 1 RUN: 18562fa5-2381-4537-981b-14fb632f9946